fUSD/lending_fUSD_20250826
["ID","MTS","AMOUNT","RATE_DAILY","PERIOD"]
[381434827,1756197041151,-276.25912775,0.00017973,2]
[381434828,1756197041161,-500.0,0.00017973,2]
[381434829,1756197041171,-500.0,0.00017973,2]
[381434830,1756197041181,-500.0,0.00017973,2]
[381434831,1756197041191,-500.0,0.00017973,2]
[381434832,1756197041201,-308.89739518,0.00017973,2]
[381434833,1756197041211,-500.0,0.00017973,2]
[381434834,1756197041222,-500.09707482,0.00017973,2]
[381434835,1756197041231,-500.11200323,0.00017973,2]
[381434836,1756197041241,-500.0,0.00017973,2]
[381434837,1756197041251,-500.0,0.00017977,2]
[381434838,1756197041262,-300.0,0.00017999,2]
[381434839,1756197041271,-300.0,0.00017999,2]
[381434840,1756197041281,-1072445.16479796,0.00018,2]
[381434841,1756197041290,-108740.87023231,0.00018,2]
[381434842,1756197041301,-1000.0,0.00018,2]
[381434843,1756197041311,-500.0,0.00018015,2]
[381434844,1756197041321,-500.0,0.00018052,2]
[381434845,1756197041332,-500.0,0.0001809,2]
[381434846,1756197041342,-500.0,0.00018127,2]
[381434847,1756197041353,-1887.42431089,0.00018161,2]
[381434848,1756197041363,-505.00180592,0.00018165,2]
[381434849,1756197041374,-500.0,0.00018165,2]
[381434850,1756197041383,-1603.92039987,0.00018173,2]
[381434851,1756197041393,-505.00180592,0.00018173,2]
[381434852,1756197041403,-62261.55442804,0.00018177,2]
[381434853,1756197041414,-62261.55442804,0.0001818,2]
[381434854,1756197041424,-1887.42431089,0.00018182,2]
[381434855,1756197041434,-62261.55442804,0.00018183,2]
[381434856,1756197041445,-1603.92039987,0.00018185,2]
[381434857,1756197041455,-1887.42431089,0.00018186,2]
[381434858,1756197041466,-1603.92039987,0.00018187,2]
[381434859,1756197041476,-1603.92039987,0.0001819,2]
[381434860,1756197041487,-1887.42431089,0.00018192,2]
[381434861,1756197041498,-1443.46291011,0.00018194,2]
[381434862,1756197041508,-1443.46291011,0.00018197,2]
[381434863,1756197041518,-1584.41243367,0.00018199,2]
[381434864,1756197041529,-1584.41243367,0.00018202,2]
[381434865,1756197041540,-2577.85805589,0.00018202,2]
[381434866,1756197041551,-500.0,0.00018202,2]
[381434867,1756197041562,-505.00180592,0.00018207,2]
[381434868,1756197041573,-505.00180592,0.00018207,2]
[381434869,1756197041588,-1603.92039987,0.00018211,2]
[381434870,1756197041600,-2577.85805589,0.00018217,2]
[381434871,1756197041610,-2577.85805589,0.00018217,2]
[381434872,1756197041620,-1887.42431089,0.00018217,2]
[381434873,1756197041631,-62261.55442804,0.00018219,2]
[381434874,1756197041642,-62261.55442804,0.00018223,2]
[381434875,1756197041653,-1443.46291011,0.00018225,2]
[381434876,1756197041663,-1443.46291011,0.00018229,2]
[381434877,1756197041675,-505.00180592,0.0001823,2]
[381434878,1756197041686,-1443.46291011,0.00018235,2]
[381434879,1756197041696,-500.0,0.0001824,2]
[381434880,1756197041705,-1603.92039987,0.00018241,2]
[381434881,1756197041714,-2577.85805589,0.00018243,2]
[381434882,1756197041724,-1584.41243367,0.00018245,2]
[381434883,1756197041734,-1603.92039987,0.00018247,2]
[381434884,1756197041745,-2577.85805589,0.00018254,2]
[381434885,1756197041754,-1887.42431089,0.00018259,2]
[381434886,1756197041765,-2577.85805589,0.00018261,2]
[381434887,1756197041775,-505.00180592,0.00018263,2]
[381434888,1756197041796,-1887.42431089,0.00018269,2]
[381434889,1756197041807,-62261.55442804,0.00018271,2]
[381434890,1756197041817,-1584.41243367,0.00018273,2]
[381434891,1756197041827,-1443.46291011,0.00018276,2]
[381434892,1756197041838,-500.0,0.00018277,2]
[381434893,1756197041847,-2577.85805589,0.00018278,2]
[381434894,1756197041857,-1584.41243367,0.00018279,2]
[381434895,1756197041868,-1584.41243367,0.00018281,2]
[381434896,1756197041879,-505.00180592,0.00018281,2]
[381434897,1756197041888,-1443.46291011,0.00018287,2]
[381434898,1756197041899,-1584.41243367,0.00018293,2]
[381434899,1756197041909,-62261.55442804,0.000183,2]
[381434900,1756197041920,-500.0,0.00018315,2]
[381434901,1756197041930,-500.0,0.00018352,2]
[381434902,1756197041940,-500.0,0.0001839,2]
[381434903,1756197041950,-1017.0,0.00018394,2]
[381434904,1756197041960,-300.0,0.00018399,2]
[381434905,1756197041970,-110888.29666502,0.000184,2]
[381434906,1756197041980,-500.0,0.00018427,2]
[381434907,1756197041990,-500.0,0.00018465,2]
[381434908,1756197042000,-500.0,0.00018503,2]
[381434909,1756197042011,-1000.0,0.00018521,2]
[381434910,1756197042021,-1000.0,0.00018521,2]
[381434911,1756197042030,-1000.0,0.00018521,2]
[381434912,1756197042040,-1000.0,0.00018521,2]
[381434913,1756197042051,-1000.0,0.00018521,2]
[381434914,1756197042060,-1000.0,0.00018521,2]
[381434915,1756197042070,-1000.0,0.00018521,2]
[381434916,1756197042079,-1000.0,0.00018521,2]
[381434917,1756197042090,-1000.0,0.00018521,2]
[381434918,1756197042099,-1000.0,0.00018521,2]
[381434919,1756197042109,-500.54614658,0.00018521,2]
[381434920,1756197042119,-400.40264423,0.00018521,2]
[381434921,1756197042129,-1000.0,0.00018521,2]
[381434922,1756197042140,-1000.0,0.00018521,2]
[381434923,1756197042150,-1000.0,0.00018521,2]
[381434924,1756197042159,-1000.0,0.00018521,2]
[381434925,1756197042170,-500.45989624,0.00018521,2]
[381434926,1756197042179,-1000.0,0.00018521,2]
[381434927,1756197042188,-500.0,0.0001854,2]
[381434928,1756197042198,-500.0,0.00018578,2]
[381434929,1756197042208,-500.0,0.00018615,2]
[381434930,1756197042217,-319.0,0.0001864,2]
[381434931,1756197042227,-500.0,0.00018653,2]
[381434932,1756197042237,-500.0,0.0001869,2]
[381434933,1756197042246,-500.0,0.00018728,2]
[381434934,1756197042257,-500.0,0.00018765,2]
[381434935,1756197042267,-500.0,0.00018803,2]
[381434936,1756197042277,-151.0,0.0001884,2]
[381434937,1756197042286,-151.0,0.0001884,2]
[381434938,1756197042296,-151.0,0.0001884,2]
[381434939,1756197042306,-151.0,0.0001884,2]
[381434940,1756197042316,-151.0,0.0001884,2]
[381434941,1756197042326,-151.0,0.0001884,2]
[381434942,1756197042336,-151.0,0.0001884,2]
[381434943,1756197042346,-151.0,0.0001884,2]
[381434944,1756197042355,-151.0,0.0001884,2]
[381434945,1756197042364,-151.0,0.0001884,2]
[381434946,1756197042374,-151.0,0.0001884,2]
[381434947,1756197042384,-151.0,0.0001884,2]
[381434948,1756197042394,-151.0,0.0001884,2]
[381434949,1756197042404,-151.0,0.0001884,2]
[381434950,1756197042413,-151.0,0.0001884,2]
[381434951,1756197042423,-151.0,0.0001884,2]
[381434952,1756197042432,-151.0,0.0001884,2]
[381434953,1756197042442,-372.719028,0.0001884,2]
[381434954,1756197042452,-151.0,0.0001884,2]
[381434955,1756197042461,-372.719028,0.0001884,2]
[381434956,1756197042471,-151.0,0.0001884,2]
[381434957,1756197042481,-151.0,0.0001884,2]
[381434958,1756197042490,-372.719028,0.0001884,2]
[381434959,1756197042499,-151.0,0.0001884,2]
[381434960,1756197042509,-151.0,0.0001884,2]
[381434961,1756197042519,-372.719028,0.0001884,2]
[381434962,1756197042529,-151.0,0.0001884,2]
[381434963,1756197042539,-619.559227,0.0001884,2]
[381434964,1756197042549,-151.0,0.0001884,2]
[381434965,1756197042559,-619.559227,0.0001884,2]
[381434966,1756197042569,-151.0,0.0001884,2]
[381434967,1756197042580,-151.0,0.0001884,2]
[381434968,1756197042591,-619.559227,0.0001884,2]
[381434969,1756197042600,-151.0,0.0001884,2]
[381434970,1756197042610,-619.559227,0.0001884,2]
[381434971,1756197042622,-151.0,0.0001884,2]
[381434972,1756197042632,-500.0,0.0001884,2]
[381434973,1756197042642,-150.0,0.00018841,2]
[381434974,1756197042652,-858.08311846,0.00018842,2]
[381434975,1756197042664,-1093.63534706,0.00018843,2]
[381434976,1756197042674,-1329.18757566,0.00018844,2]
[381434977,1756197042684,-1564.73980426,0.00018845,2]
[381434978,1756197042694,-1800.29203286,0.00018846,2]
[381434979,1756197042704,-2035.84426145,0.00018847,2]
[381434980,1756197042715,-2271.39649005,0.00018848,2]
[381434981,1756197042724,-2506.94871865,0.00018849,2]
[381434982,1756197042734,-2742.50094725,0.0001885,2]
[381434983,1756197042744,-300.0,0.00018859,2]
[381434984,1756197042754,-300.0,0.00018859,2]
[381434985,1756197042764,-300.0,0.00018859,2]
[381434987,1756197042874,-227.84459479,0.00018859,2]
[381434989,1756197042883,-300.0,0.00018859,2]
[381434991,1756197042893,-465058.94202696,0.0001886,2]
[381434993,1756197042902,-151.0,0.0001886,2]
[381434995,1756197042911,-12000.0,0.0001886,2]
[381434996,1756197042920,-151.0,0.0001886,2]
[381434998,1756197042929,-12000.0,0.0001886,2]
[381435000,1756197042938,-151.0,0.0001886,2]
[381435002,1756197042948,-177.613696,0.0001886,2]
[381435004,1756197042957,-12000.0,0.0001886,2]
[381435007,1756197042968,-177.613696,0.0001886,2]
[381435008,1756197042977,-12000.0,0.0001886,2]
[381435010,1756197042987,-153.217048,0.0001886,2]
[381435012,1756197042997,-177.613696,0.0001886,2]
[381435014,1756197043006,-11064.521473,0.0001886,2]
[381435016,1756197043016,-151.0,0.0001886,2]
[381435017,1756197043025,-177.613696,0.0001886,2]
[381435018,1756197043034,-151.0,0.0001886,2]
[381435019,1756197043043,-190.145255,0.0001886,2]
[381435021,1756197043054,-656.785412,0.0001886,2]
[381435022,1756197043063,-656.785412,0.0001886,2]
[381435023,1756197043073,-155.658208,0.0001886,2]
[381435024,1756197043083,-612.369938,0.0001886,2]
[381435025,1756197043093,-656.785412,0.0001886,2]
[381435026,1756197043103,-155.658208,0.0001886,2]
[381435027,1756197043113,-612.369938,0.0001886,2]
[381435028,1756197043122,-151.0,0.0001886,2]
[381435030,1756197043132,-656.785412,0.0001886,2]
[381435031,1756197043142,-155.658208,0.0001886,2]
[381435032,1756197043151,-612.369938,0.0001886,2]
[381435033,1756197043161,-151.0,0.0001886,2]
[381435034,1756197043170,-155.658208,0.0001886,2]
[381435035,1756197043179,-612.369938,0.0001886,2]
[381435036,1756197043188,-151.0,0.0001886,2]
[381435037,1756197043197,-151.0,0.0001886,2]
[381435038,1756197043206,-151.0,0.0001886,2]
[381435039,1756197043215,-151.0,0.0001886,2]
[381435040,1756197043224,-151.0,0.0001886,2]
[381435041,1756197043234,-151.0,0.0001886,2]
[381435042,1756197043243,-151.0,0.0001886,2]
[381435043,1756197043252,-151.0,0.0001886,2]
[381435044,1756197043261,-151.0,0.0001886,2]
[381435045,1756197043270,-151.0,0.0001886,2]
[381435046,1756197043279,-151.0,0.0001886,2]
[381435047,1756197043289,-151.0,0.0001886,2]
[381435048,1756197043298,-151.0,0.0001886,2]
[381435049,1756197043307,-239.474554,0.0001886,2]
[381435050,1756197043317,-239.474554,0.0001886,2]
[381435051,1756197043326,-239.474554,0.0001886,2]
[381435052,1756197043337,-239.474554,0.0001886,2]
[381435053,1756197043347,-179.573856,0.0001886,2]
[381435054,1756197043357,-151.0,0.0001886,2]
[381435055,1756197043366,-179.573856,0.0001886,2]
[381435056,1756197043376,-151.0,0.0001886,2]
[381435057,1756197043386,-460.016274,0.0001886,2]
[381435058,1756197043396,-151.0,0.0001886,2]
[381435059,1756197043406,-151.0,0.0001886,2]
[381435060,1756197043417,-179.573856,0.0001886,2]
[381435061,1756197043427,-151.0,0.0001886,2]
[381435062,1756197043436,-151.0,0.0001886,2]
[381435063,1756197043446,-460.016274,0.0001886,2]
[381435064,1756197043455,-151.0,0.0001886,2]
[381435065,1756197043466,-151.0,0.0001886,2]
[381435066,1756197043475,-179.573856,0.0001886,2]
[381435067,1756197043484,-151.0,0.0001886,2]
[381435068,1756197043494,-460.016274,0.0001886,2]
[381435069,1756197043503,-151.0,0.0001886,2]
[381435070,1756197043512,-460.016274,0.0001886,2]
[381435071,1756197043522,-158.125596,0.0001886,2]
[381435072,1756197043531,-151.0,0.0001886,2]
[381435074,1756197043541,-151.0,0.0001886,2]
[381435076,1756197043551,-151.0,0.0001886,2]
[381435079,1756197043561,-151.0,0.0001886,2]
[381435081,1756197043573,-151.0,0.0001886,2]
[381435083,1756197043592,-177.928757,0.0001886,2]
[381435085,1756197043611,-151.949429,0.0001886,2]
[381435087,1756197043623,-151.0,0.0001886,2]
[381435089,1756197043632,-1774.242245,0.0001886,2]
[381435091,1756197043642,-151.0,0.0001886,2]
[381435094,1756197043652,-151.0,0.0001886,2]
[381435098,1756197043662,-304.14737,0.0001886,2]
[381435101,1756197043671,-1774.242245,0.0001886,2]
[381435104,1756197043683,-151.0,0.0001886,2]
[381435107,1756197043692,-151.0,0.0001886,2]
[381435111,1756197043703,-151.0,0.0001886,2]
[381435113,1756197043713,-323.877022,0.0001886,2]
[381435114,1756197043722,-1774.242245,0.0001886,2]
[381435115,1756197043733,-304.14737,0.0001886,2]
[381435116,1756197043742,-151.0,0.0001886,2]
[381435117,1756197043752,-151.0,0.0001886,2]
[381435118,1756197043765,-187.5147,0.0001886,2]
[381435119,1756197043776,-304.14737,0.0001886,2]
[381435120,1756197043788,-1774.242245,0.0001886,2]
[381435121,1756197043797,-323.877022,0.0001886,2]
[381435122,1756197043806,-304.14737,0.0001886,2]
[381435123,1756197043817,-187.5147,0.0001886,2]
[381435124,1756197043826,-323.877022,0.0001886,2]
[381435125,1756197043835,-187.5147,0.0001886,2]
[381435126,1756197043844,-323.877022,0.0001886,2]
[381435127,1756197043854,-151.0,0.0001886,2]
[381435128,1756197043863,-293.876933,0.0001886,2]
[381435129,1756197043872,-293.876933,0.0001886,2]
[381435130,1756197043882,-187.5147,0.0001886,2]
[381435131,1756197043891,-293.876933,0.0001886,2]
[381435132,1756197043902,-293.876933,0.0001886,2]
[381435133,1756197043911,-151.0,0.0001886,2]
[381435134,1756197043922,-295.395436,0.0001886,2]
[381435135,1756197043932,-194.557096,0.0001886,2]
[381435136,1756197043944,-194.557096,0.0001886,2]
[381435137,1756197043953,-194.557096,0.0001886,2]
[381435138,1756197043963,-194.557096,0.0001886,2]
[381435139,1756197043972,-1500.0,0.00018873,2]
[381435140,1756197043984,-500.0,0.00018878,2]
[381435141,1756197043994,-872.66760971,0.000189,3]
[381435142,1756197044004,-500.0,0.00018915,2]
[381435143,1756197044013,-500.0,0.00018953,2]
[381435144,1756197044022,-3300.0,0.0001899,5]
[381435145,1756197044032,-500.0,0.0001899,2]
[381435146,1756197044044,-300.0,0.00018999,2]
[381435147,1756197044054,-65676.65779619,0.00019,2]
[381435148,1756197044064,-5065.97553237,0.00019,2]
[381435149,1756197044074,-500.0,0.00019028,2]
[381435150,1756197044086,-500.0,0.00019065,2]
[381435151,1756197044095,-1500.0,0.00019068,2]
[381435152,1756197044104,-1500.0,0.00019068,2]
[381435153,1756197044114,-1500.0,0.00019068,2]
[381435154,1756197044124,-1500.0,0.00019068,2]
[381435155,1756197044132,-1500.0,0.00019068,2]
[381435156,1756197044141,-1500.0,0.00019068,2]
[381435157,1756197044151,-1500.0,0.00019068,2]
[381435158,1756197044159,-1179.05146911,0.00019068,2]
[381435159,1756197044169,-1606.40031721,0.00019068,2]
[381435160,1756197044178,-1500.0,0.00019068,2]
[381435161,1756197044188,-1500.0,0.00019068,2]
[381435162,1756197044198,-1500.0,0.00019068,2]
[381435163,1756197044207,-1500.0,0.00019068,2]
[381435164,1756197044217,-1500.0,0.00019068,2]
[381435165,1756197044227,-1004.11736908,0.00019068,2]
[381435166,1756197044238,-500.0,0.00019103,2]
[381435167,1756197044247,-500.0,0.00019141,2]
[381435168,1756197044257,-817.71143596,0.00019178,2]
[381435169,1756197044268,-5000.0,0.00019178,2]
[381435170,1756197044277,-150.0,0.00019178,2]
[381435171,1756197044288,-1016.51968239,0.000194,2]
[381435172,1756197044298,-2449.17706946,0.00019421,2]
[381435173,1756197044308,-458.7662338,0.00019455,2]
[381435174,1756197044317,-160.0,0.00019455,2]
[381435175,1756197044327,-319.0,0.0001946,2]
[381435176,1756197044336,-160.0,0.00019465,2]
[381435177,1756197044346,-212.18043798,0.00019526,2]
[381435178,1756197044356,-844.63891918,0.00019528,2]
[381435179,1756197044367,-599.0,0.00019529,2]
[381435180,1756197044376,-1658.0,0.00019529,2]
[381435181,1756197044386,-566.0,0.00019529,2]
[381435182,1756197044395,-1298.0,0.00019529,2]
[381435183,1756197044405,-1173.0,0.00019529,2]
[381435184,1756197044414,-895.0,0.00019529,2]
[381435185,1756197044424,-6146.0,0.00019529,2]
[381435186,1756197044434,-2031.0,0.00019529,2]
[381435187,1756197044443,-1256.0,0.00019529,2]
[381435188,1756197044454,-926.0,0.00019529,2]
[381435189,1756197044464,-4155.0,0.00019529,2]
[381435190,1756197044474,-472.83011308,0.00019616,2]
[381435191,1756197044483,-2002.60865915,0.00019616,2]
[381435192,1756197044492,-2000.0,0.00019616,2]
[381435193,1756197044502,-2000.0,0.00019616,2]
[381435194,1756197044512,-651.18306465,0.00019616,2]
[381435195,1756197044521,-2000.0,0.00019616,2]
[381435196,1756197044531,-2000.0,0.00019616,2]
[381435197,1756197044541,-2000.0,0.00019616,2]
[381435198,1756197044550,-2000.0,0.00019616,2]
[381435199,1756197044560,-2000.0,0.00019616,2]
[381435200,1756197044569,-2000.0,0.00019616,2]
[381435201,1756197044583,-417.10743411,0.00019616,2]
[381435202,1756197044592,-8849.05659034,0.000199,2]
[381435203,1756197044602,-514.0,0.0001997,2]
[381435204,1756197044611,-300.0,0.00019989,2]
[381435205,1756197044622,-70855.34599326,0.0001999,2]
[381435206,1756197044633,-300.0,0.00019999,2]
[381435207,1756197044642,-300.0,0.00019999,2]
[381435208,1756197044653,-300.0,0.00019999,2]
[381435209,1756197044664,-300.0,0.00019999,2]
[381435210,1756197044673,-45941.74704322,0.0002,2]
[381435211,1756197044682,-93291.36019056,0.0002,2]
[381435212,1756197044693,-2523.0540456,0.0002,2]
[381435213,1756197044702,-6007.65507991,0.0002,2]
[381435214,1756197044712,-882.82,0.0002,2]
[381435215,1756197044722,-1999.95,0.0002,2]
[381435216,1756197044733,-25103.80418119,0.0002,2]
[381435217,1756197044744,-46236.08221248,0.0002,5]
[381435218,1756197044754,-8300.0,0.0002,4]
[381435219,1756197044765,-5737.62477734,0.0002,2]
[381435220,1756197044775,-3950.0,0.0002,2]
[381435221,1756197044785,-1269.89630392,0.0002,2]
[381435222,1756197044795,-7234.50682646,0.0002,2]
[381435223,1756197044806,-150.0,0.0002,2]
[381435224,1756197044816,-4614.93992236,0.0002,5]
[381435225,1756197044825,-1025.06797498,0.0002,2]
[381435226,1756197044834,-2808.2698883,0.0002,2]
[381435227,1756197044843,-90292.4081162,0.0002,2]
[381435228,1756197044851,-99102.19861639,0.0002,2]
[381435229,1756197044860,-1233.97280833,0.0002,2]
[381435230,1756197044869,-4000.0,0.0002,4]
[381435231,1756197044879,-9117.35957655,0.0002001,2]
[381435232,1756197044889,-5028.85142036,0.0002001,2]
[381435233,1756197044898,-5772.0,0.0002001,2]
[381435234,1756197044908,-2500.0,0.00020164,2]
[381435235,1756197044918,-310.18600903,0.00020164,2]
[381435236,1756197044927,-220.12734939,0.00020164,2]
[381435237,1756197044937,-2500.0,0.00020164,2]
[381435238,1756197044946,-2500.0,0.00020164,2]
[381435239,1756197044955,-1352.9675257,0.00020164,2]
[381435240,1756197044966,-2500.0,0.00020164,2]
[381435241,1756197044975,-784.05329204,0.00020164,2]
[381435242,1756197044985,-352.86,0.00020187,2]
[381435243,1756197044995,-319.0,0.0002028,2]
[381435244,1756197045005,-21052.64,0.00020548,2]
[381435245,1756197045014,-3269.91295603,0.00020604,2]
[381435246,1756197045023,-22208.06944002,0.000207,2]
[381435247,1756197045032,-1414.2821876,0.00020712,2]
[381435248,1756197045042,-3000.0,0.00020712,2]
[381435249,1756197045052,-248.05959402,0.00020712,2]
[381435250,1756197045062,-3000.0,0.00020712,2]
[381435251,1756197045071,-77037.41640314,0.0002085,2]
[381435252,1756197045081,-1000.0,0.000209,2]
[381435253,1756197045092,-20000.0,0.00021,2]
[381435254,1756197045103,-1169.34084742,0.00021,2]
[381435255,1756197045112,-193.01092232,0.00021,2]
[381435256,1756197045123,-160.0,0.00021,7]
[381435257,1756197045133,-4000.0,0.00021,4]
[381435258,1756197045142,-319.0,0.000211,2]
[381435259,1756197045151,-417.0,0.000211,2]
[381435260,1756197045160,-16378.19252763,0.00021111,2]
[381435261,1756197045169,-491.80451812,0.00021174,2]
[381435262,1756197045178,-3500.0,0.0002126,2]
[381435263,1756197045188,-3500.0,0.0002126,2]
[381435264,1756197045199,-200.12312063,0.00021261,2]
[381435265,1756197045209,-500.0,0.00021261,2]
[381435266,1756197045219,-600.0,0.00021261,2]
[381435267,1756197045228,-151.0,0.00021261,2]
[381435268,1756197045237,-600.0,0.00021261,2]
[381435269,1756197045247,-151.0,0.00021261,2]
[381435270,1756197045257,-600.0,0.00021261,2]
[381435271,1756197045268,-151.0,0.00021261,2]
[381435272,1756197045279,-500.0,0.00021261,2]
[381435273,1756197045288,-151.0,0.00021261,2]
[381435274,1756197045298,-600.0,0.00021261,2]
[381435275,1756197045308,-151.0,0.00021261,2]
[381435276,1756197045317,-151.0,0.00021261,2]
[381435277,1756197045326,-600.0,0.00021261,2]
[381435278,1756197045335,-151.0,0.00021261,2]
[381435279,1756197045345,-600.0,0.00021261,2]
[381435280,1756197045354,-151.0,0.00021261,2]
[381435281,1756197045363,-600.0,0.00021261,2]
[381435282,1756197045372,-151.0,0.00021261,2]
[381435283,1756197045381,-600.0,0.00021261,2]
[381435284,1756197045391,-151.0,0.00021261,2]
[381435285,1756197045400,-600.0,0.00021261,2]
[381435286,1756197045410,-600.0,0.00021261,2]
[381435287,1756197045419,-264.00881791,0.00021261,2]
[381435288,1756197045428,-513.55084302,0.00021261,2]
[381435289,1756197045437,-2000.0,0.00021273,2]
[381435290,1756197045447,-2000.0,0.00021273,2]
[381435291,1756197045457,-150.0,0.00021471,2]
[381435292,1756197045466,-582.77158341,0.00021471,2]
[381435293,1756197045475,-150.0,0.00021471,2]
[381435294,1756197045484,-1593.81057441,0.00021471,2]
[381435295,1756197045493,-217.58035609,0.000215,2]
[381435296,1756197045502,-600.0,0.00021616,2]
[381435297,1756197045512,-506.89168008,0.00021808,2]
[381435298,1756197045520,-4000.0,0.00021808,2]
[381435299,1756197045530,-1854.41,0.000219,2]
[381435300,1756197045539,-332.908,0.00021901,2]
[381435301,1756197045548,-159.901781,0.00021918,2]
[381435302,1756197045559,-319.0,0.0002192,2]
[381435303,1756197045569,-3904.89670461,0.0002192,4]
[381435304,1756197045579,-3904.89670461,0.0002192,4]
[381435305,1756197045592,-3904.89670461,0.0002192,4]
[381435306,1756197045602,-3904.89670461,0.0002192,4]
[381435307,1756197045611,-3904.89670461,0.0002192,4]
[381435308,1756197045620,-3904.89670461,0.0002192,4]
[381435309,1756197045630,-3904.89670461,0.0002192,4]
[381435310,1756197045640,-3904.89670461,0.0002192,4]
[381435311,1756197045649,-3904.89670461,0.0002192,4]
[381435312,1756197045658,-3904.89670461,0.0002192,4]
[381435313,1756197045670,-3904.89670461,0.0002192,4]
[381435314,1756197045679,-3904.89670461,0.0002192,4]
[381435315,1756197045689,-3904.89670461,0.0002192,4]
[381435316,1756197045698,-3904.89670461,0.0002192,4]
[381435317,1756197045707,-3904.89670461,0.0002192,4]
[381435318,1756197045716,-3904.89670461,0.0002192,4]
[381435319,1756197045725,-3904.89670461,0.0002192,4]
[381435320,1756197045734,-3904.89670461,0.0002192,4]
[381435321,1756197045744,-3904.89670461,0.0002192,4]
[381435322,1756197045754,-3904.89,0.0002192,4]
[381435323,1756197045764,-9111.42564409,0.0002192,4]
[381435324,1756197045774,-9111.42564409,0.0002192,4]
[381435325,1756197045784,-9111.42564409,0.0002192,4]
[381435326,1756197045794,-9111.42564409,0.0002192,4]
[381435327,1756197045808,-9111.42564409,0.0002192,4]
[381435328,1756197045817,-9111.42564409,0.0002192,4]
[381435329,1756197045827,-9111.42564409,0.0002192,4]
[381435330,1756197045836,-9111.42564409,0.0002192,4]
[381435331,1756197045845,-9111.42564409,0.0002192,4]
[381435332,1756197045854,-9111.42564409,0.0002192,4]
[381435333,1756197045864,-9111.42564409,0.0002192,4]
[381435334,1756197045873,-9111.42564409,0.0002192,4]
[381435335,1756197045882,-9111.42564409,0.0002192,4]
[381435336,1756197045891,-9111.42564409,0.0002192,4]
[381435337,1756197045900,-9111.42564409,0.0002192,4]
[381435338,1756197045909,-9111.42564409,0.0002192,4]
[381435339,1756197045918,-9111.42564409,0.0002192,4]
[381435340,1756197045927,-9111.42564409,0.0002192,4]
[381435341,1756197045936,-9111.42564409,0.0002192,4]
[381435342,1756197045945,-9111.42,0.0002192,4]
[381435343,1756197045955,-2284.63136497,0.0002192,4]
[381435344,1756197045964,-2284.63136497,0.0002192,4]
[381435345,1756197045974,-2284.63136497,0.0002192,4]
[381435346,1756197045983,-2284.63136497,0.0002192,4]
[381435347,1756197045993,-2284.63136497,0.0002192,4]
[381435348,1756197046002,-2284.63136497,0.0002192,4]
[381435349,1756197046011,-2284.63136497,0.0002192,4]
[381435350,1756197046020,-2284.63136497,0.0002192,4]
[381435351,1756197046029,-2284.63136497,0.0002192,4]
[381435352,1756197046038,-2284.63136497,0.0002192,4]
[381435353,1756197046048,-2284.63136497,0.0002192,4]
[381435354,1756197046059,-2284.63136497,0.0002192,4]
[381435355,1756197046068,-2284.63136497,0.0002192,4]
[381435356,1756197046077,-2284.63136497,0.0002192,4]
[381435357,1756197046087,-2284.63136497,0.0002192,4]
[381435358,1756197046096,-2284.63136497,0.0002192,4]
[381435359,1756197046105,-2284.63136497,0.0002192,4]
[381435360,1756197046114,-2284.63136497,0.0002192,4]
[381435361,1756197046123,-2284.63136497,0.0002192,4]
[381435362,1756197046132,-2284.63,0.0002192,4]
[381435363,1756197046142,-5330.80651826,0.0002192,4]
[381435364,1756197046151,-5330.80651826,0.0002192,4]
[381435365,1756197046160,-5330.80651826,0.0002192,4]
[381435366,1756197046170,-5330.80651826,0.0002192,4]
[381435367,1756197046179,-5330.80651826,0.0002192,4]
[381435368,1756197046188,-5330.80651826,0.0002192,4]